fUST/lending_fUST_20251022
["ID","MTS","AMOUNT","RATE_DAILY","PERIOD"]
[392030381,1761111045237,-152.138354,0.00032437,7]
[392030382,1761111045246,-155.709285,0.00032437,7]
[392030383,1761111045255,-500.0,0.0003245,15]
[392030384,1761111045265,-437.94,0.00032455,15]
[392030385,1761111045274,-437.94,0.00032555,15]
[392030386,1761111045283,-330.832966,0.00032561,2]
[392030387,1761111045292,-152.138354,0.00032561,2]
[392030388,1761111045301,-155.709285,0.00032561,2]
[392030389,1761111045310,-1364.92,0.00032602,7]
[392030390,1761111045319,-174.49454494,0.00032602,7]
[392030391,1761111045328,-516.12,0.00032602,7]
[392030392,1761111045337,-500.0,0.00032602,7]
[392030393,1761111045346,-1188.42,0.00032602,7]
[392030394,1761111045355,-500.0,0.00032602,7]
[392030395,1761111045365,-1794.76,0.00032602,2]
[392030396,1761111045374,-500.0,0.00032602,7]
[392030397,1761111045383,-500.0,0.00032602,7]
[392030398,1761111045392,-200.0,0.00032602,7]
[392030399,1761111045492,-403.89839462,0.00032602,2]
[392030400,1761111045502,-500.0,0.00032602,7]
[392030401,1761111045510,-500.0,0.00032602,7]
[392030402,1761111045519,-1118.75,0.00032602,3]
[392030403,1761111045528,-2588.4,0.00032602,2]
[392030404,1761111045538,-500.0,0.00032602,7]
[392030405,1761111045547,-500.0,0.00032602,7]
[392030406,1761111045556,-611.11,0.00032602,7]
[392030407,1761111045566,-500.0,0.00032602,2]
[392030408,1761111045575,-437.94,0.00032655,15]
[392030409,1761111045585,-437.94,0.00032755,15]
[392030410,1761111045594,-1809.23,0.000328,2]
[392030411,1761111045603,-437.94,0.00032855,15]
[392030412,1761111045612,-1364.92,0.00032876,7]
[392030413,1761111045621,-516.12,0.00032876,7]
[392030414,1761111045630,-500.0,0.00032876,7]
[392030415,1761111045639,-1188.42,0.00032876,7]
[392030416,1761111045649,-500.0,0.00032876,7]
[392030417,1761111045658,-1794.76,0.00032876,2]
[392030418,1761111045667,-500.0,0.00032876,7]
[392030419,1761111045676,-500.0,0.00032876,7]
[392030420,1761111045685,-200.0,0.00032876,7]
[392030421,1761111045694,-500.0,0.00032876,7]
[392030422,1761111045703,-500.0,0.00032876,7]
[392030423,1761111045712,-2999.0,0.00032876,120]
[392030424,1761111045722,-1118.75,0.00032876,3]
[392030425,1761111045730,-2588.4,0.00032876,2]
[392030426,1761111045740,-500.0,0.00032876,7]
[392030427,1761111045748,-500.0,0.00032876,7]
[392030428,1761111045757,-611.11,0.00032876,7]
[392030429,1761111045767,-500.0,0.00032876,2]
[392030430,1761111045776,-159.1,0.000329,30]
[392030431,1761111045785,-557.68980789,0.00032919,120]
[392030432,1761111045794,-158.97718662,0.00032932,30]
[392030433,1761111045803,-437.94,0.00032955,60]
[392030434,1761111045812,-500.0,0.00032998,30]
[392030435,1761111045821,-160.0,0.00033,20]
[392030436,1761111045833,-160.0,0.00033,7]
[392030437,1761111045842,-160.0,0.00033,7]
[392030438,1761111045852,-160.0,0.00033,15]
[392030439,1761111045861,-160.0,0.00033,30]
[392030440,1761111045870,-35513.96761015,0.00033,20]
[392030441,1761111045879,-1593.09739046,0.00033,2]
[392030442,1761111045888,-119599.36379576,0.00033,5]
[392030443,1761111045898,-196.22648184,0.00033,120]
[392030444,1761111045907,-293.85068442,0.00033047,7]
[392030445,1761111045916,-437.94,0.00033055,60]
[392030446,1761111045926,-1152.0,0.00033067,2]
[392030447,1761111045935,-168.69300459,0.00033132,2]
[392030448,1761111045948,-1364.92,0.0003315,7]
[392030449,1761111045957,-516.12,0.0003315,7]
[392030450,1761111045966,-500.0,0.0003315,7]
[392030451,1761111045976,-1188.42,0.0003315,7]
[392030452,1761111045985,-500.0,0.0003315,7]
[392030453,1761111045995,-1794.76,0.0003315,2]
[392030454,1761111046004,-500.0,0.0003315,7]
[392030455,1761111046013,-500.0,0.0003315,7]
[392030456,1761111046023,-200.0,0.0003315,7]
[392030457,1761111046032,-500.0,0.0003315,7]
[392030458,1761111046041,-500.0,0.0003315,7]
[392030459,1761111046051,-1118.75,0.0003315,3]
[392030460,1761111046061,-2588.4,0.0003315,2]
[392030461,1761111046071,-500.0,0.0003315,7]
[392030463,1761111046080,-500.0,0.0003315,7]
[392030465,1761111046090,-611.11,0.0003315,7]
[392030466,1761111046099,-500.0,0.0003315,2]
[392030467,1761111046108,-437.94,0.00033155,60]
[392030468,1761111046118,-1137.89,0.000332,7]
[392030469,1761111046128,-437.94,0.00033255,60]
[392030470,1761111046137,-800.0,0.00033326,7]
[392030471,1761111046147,-1396.11950418,0.0003335,2]
[392030472,1761111046156,-437.94,0.00033355,60]
[392030473,1761111046166,-158.97718662,0.0003337,30]
[392030474,1761111046175,-1364.92,0.00033424,7]
[392030475,1761111046184,-516.12,0.00033424,7]
[392030476,1761111046193,-500.0,0.00033424,7]
[392030477,1761111046203,-1188.42,0.00033424,7]
[392030478,1761111046212,-1794.76,0.00033424,2]
[392030480,1761111046221,-500.0,0.00033424,7]
[392030481,1761111046230,-500.0,0.00033424,7]
[392030482,1761111046239,-201.20640799,0.00033424,7]
[392030483,1761111046249,-500.0,0.00033424,7]
[392030484,1761111046258,-500.0,0.00033424,7]
[392030485,1761111046267,-1118.75,0.00033424,3]
[392030486,1761111046276,-2588.4,0.00033424,2]
[392030487,1761111046285,-630.27555651,0.00033424,7]
[392030488,1761111046295,-447.32862474,0.00033424,7]
[392030489,1761111046304,-611.11,0.00033424,7]
[392030490,1761111046313,-500.0,0.00033424,2]
[392030491,1761111046323,-437.94,0.00033455,60]
[392030492,1761111046332,-752.43,0.00033459,2]
[392030493,1761111046341,-503.41697497,0.0003354,7]
[392030494,1761111046350,-500.0,0.00033546,30]
[392030495,1761111046359,-437.94,0.00033555,60]
[392030496,1761111046370,-2999.0,0.00033561,120]
[392030497,1761111046380,-983.0,0.00033572,2]
[392030498,1761111046389,-632.0,0.00033572,2]
[392030499,1761111046398,-2164.0,0.00033572,2]
[392030500,1761111046407,-411.0,0.00033572,2]
[392030501,1761111046416,-411.0,0.00033572,2]
[392030502,1761111046426,-330.832966,0.00033588,7]
[392030503,1761111046435,-152.138354,0.00033588,7]
[392030504,1761111046444,-155.709285,0.00033588,7]
[392030505,1761111046454,-150.0,0.00033591,30]
[392030506,1761111046464,-437.94,0.00033655,60]
[392030507,1761111046473,-303.62411145,0.00033666,2]
[392030508,1761111046482,-1364.92,0.00033698,7]
[392030509,1761111046491,-516.12,0.00033698,7]
[392030510,1761111046500,-500.0,0.00033698,7]
[392030511,1761111046509,-1188.42,0.00033698,7]
[392030512,1761111046518,-1794.76,0.00033698,2]
[392030513,1761111046527,-500.0,0.00033698,7]
[392030514,1761111046536,-500.0,0.00033698,7]
[392030515,1761111046545,-500.0,0.00033698,7]
[392030516,1761111046555,-1118.75,0.00033698,3]
[392030517,1761111046564,-2588.4,0.00033698,2]
[392030518,1761111046573,-611.11,0.00033698,7]
[392030519,1761111046582,-500.0,0.00033698,2]
[392030520,1761111046591,-9603.04,0.000337,14]
[392030521,1761111046600,-160.0,0.00033733,2]
[392030522,1761111046610,-437.94,0.00033755,60]
[392030523,1761111046620,-158.97718662,0.00033808,30]
[392030524,1761111046630,-158.97718662,0.00033808,30]
[392030525,1761111046639,-720.0,0.00033811,30]
[392030526,1761111046648,-437.94,0.00033855,60]
[392030527,1761111046657,-2017.17340017,0.00033859,2]
[392030528,1761111046666,-151.0,0.00033895,2]
[392030529,1761111046675,-151.0,0.00033895,2]
[392030530,1761111046684,-693.40514489,0.00033896,2]
[392030531,1761111046693,-596.00437485,0.00033919,120]
[392030532,1761111046702,-500.0,0.0003394,10]
[392030533,1761111046712,-437.94,0.00033955,60]
[392030534,1761111046721,-1364.92,0.00033972,7]
[392030535,1761111046730,-516.12,0.00033972,7]
[392030536,1761111046739,-500.0,0.00033972,7]
[392030537,1761111046747,-1188.42,0.00033972,7]
[392030538,1761111046757,-1794.76,0.00033972,2]
[392030539,1761111046765,-500.0,0.00033972,7]
[392030540,1761111046774,-303.95024895,0.00033972,7]
[392030541,1761111046783,-500.0,0.00033972,7]
[392030542,1761111046792,-1118.75,0.00033972,3]
[392030543,1761111046801,-2588.4,0.00033972,2]
[392030544,1761111046810,-611.11,0.00033972,7]
[392030545,1761111046819,-500.0,0.00033972,2]
[392030546,1761111046827,-5059.0924761,0.0003398,2]
[392030547,1761111046837,-625.33567772,0.0003399,60]
[392030548,1761111046846,-646.6078152,0.00034,7]
[392030549,1761111046855,-8112.52134326,0.00034,30]
[392030550,1761111046865,-202.96329083,0.00034,2]
[392030552,1761111046874,-1809.23,0.00034,14]
[392030554,1761111046883,-200.4797,0.00034,120]
[392030556,1761111046892,-200.0,0.00034,120]
[392030558,1761111046901,-437.94,0.00034055,60]
[392030560,1761111046910,-2017.17340017,0.0003406,2]
[392030562,1761111046919,-151.0,0.0003406,30]
[392030564,1761111046928,-151.0,0.0003406,30]
[392030566,1761111046937,-500.0,0.0003407,10]
[392030568,1761111046950,-500.0,0.0003407,30]
[392030570,1761111046959,-500.0,0.0003407,10]
[392030572,1761111046968,-500.0,0.0003407,10]
[392030574,1761111046977,-262.14,0.00034094,30]
[392030575,1761111046987,-467.26872558,0.000341,120]
[392030577,1761111046996,-4125.27691899,0.000341,120]
[392030579,1761111047005,-1865.57017818,0.000341,120]
[392030581,1761111047015,-189.9694027,0.000341,120]
[392030583,1761111047026,-1376.53684791,0.000341,120]
[392030585,1761111047036,-707.53437983,0.000341,120]
[392030587,1761111047044,-748.43738388,0.000341,120]
[392030589,1761111047054,-329.07958588,0.000341,120]
[392030591,1761111047064,-170.10975162,0.000341,120]
[392030593,1761111047072,-171.91579903,0.000341,120]
[392030595,1761111047081,-497.99956348,0.000341,120]
[392030597,1761111047090,-1489.65040744,0.000341,120]
[392030599,1761111047099,-154.0,0.000341,120]
[392030601,1761111047108,-800.0,0.00034148,7]
[392030603,1761111047118,-437.94,0.00034155,60]
[392030605,1761111047127,-1364.92,0.00034246,7]
[392030607,1761111047137,-516.12,0.00034246,7]
[392030609,1761111047145,-500.0,0.00034246,7]
[392030611,1761111047154,-1188.42,0.00034246,7]
[392030613,1761111047164,-1794.76,0.00034246,2]
[392030615,1761111047173,-500.0,0.00034246,7]
[392030617,1761111047182,-500.0,0.00034246,7]
[392030619,1761111047192,-2999.0,0.00034246,120]
[392030621,1761111047202,-1118.75,0.00034246,3]
[392030623,1761111047212,-2588.4,0.00034246,2]
[392030625,1761111047221,-611.11,0.00034246,7]
[392030627,1761111047230,-500.0,0.00034246,2]
[392030629,1761111047239,-158.97718662,0.00034247,30]
[392030631,1761111047249,-437.94,0.00034255,60]
[392030633,1761111047259,-500.0,0.0003427,30]
[392030635,1761111047268,-437.94,0.00034355,60]
[392030637,1761111047277,-437.94,0.00034455,60]
[392030639,1761111047286,-500.0,0.0003447,30]
[392030640,1761111047295,-166.5490222,0.00034478,2]
[392030642,1761111047305,-2017.17340017,0.00034496,2]
[392030644,1761111047313,-1364.92,0.0003452,7]
[392030646,1761111047323,-516.12,0.0003452,7]
[392030648,1761111047332,-500.0,0.0003452,7]
[392030650,1761111047342,-1188.42,0.0003452,7]
[392030652,1761111047351,-1794.76,0.0003452,2]
[392030654,1761111047361,-500.0,0.0003452,7]
[392030656,1761111047370,-500.0,0.0003452,7]
[392030658,1761111047380,-1118.75,0.0003452,3]
[392030660,1761111047389,-2588.4,0.0003452,2]
[392030661,1761111047398,-611.11,0.0003452,7]
[392030663,1761111047407,-500.0,0.0003452,2]
[392030665,1761111047417,-437.94,0.00034555,60]
[392030667,1761111047426,-12500.0,0.00034629,10]
[392030668,1761111047436,-615486.5397121,0.0003465,3]
[392030669,1761111047445,-437.94,0.00034655,60]
[392030671,1761111047454,-2017.17340017,0.00034682,2]
[392030672,1761111047463,-158.97718662,0.00034685,30]
[392030673,1761111047471,-213.37108463,0.00034695,2]
[392030675,1761111047480,-4687.30052869,0.00034695,2]
[392030676,1761111047489,-230.43611005,0.000347,12]
[392030677,1761111047498,-161.720033,0.00034738,7]
[392030678,1761111047507,-330.832966,0.00034738,7]
[392030679,1761111047516,-152.138354,0.00034738,7]
[392030680,1761111047525,-154.063327,0.00034738,7]
[392030681,1761111047534,-156.4958,0.00034738,7]
[392030682,1761111047543,-155.709285,0.00034738,7]
[392030683,1761111047552,-154.063328,0.00034738,7]
[392030684,1761111047562,-152.453668,0.00034738,7]
[392030685,1761111047571,-437.94,0.00034755,60]
[392030686,1761111047580,-1364.92,0.00034794,7]
[392030687,1761111047590,-516.12,0.00034794,7]
[392030688,1761111047599,-483.69,0.00034794,7]
[392030689,1761111047608,-1188.42,0.00034794,7]
[392030690,1761111047617,-1794.76,0.00034794,2]
[392030691,1761111047627,-500.0,0.00034794,7]
[392030692,1761111047635,-500.0,0.00034794,7]
[392030693,1761111047645,-1118.75,0.00034794,3]
[392030694,1761111047739,-2588.4,0.00034794,2]
[392030695,1761111047749,-611.11,0.00034794,7]
[392030696,1761111047758,-500.0,0.00034794,2]
[392030697,1761111047767,-434045.50555863,0.00034795,4]
[392030698,1761111047777,-445.02303927,0.00034795,4]
[392030699,1761111047786,-153.129618,0.00034795,30]
[392030700,1761111047795,-153.129618,0.00034795,30]
[392030701,1761111047803,-153.129618,0.00034795,30]
[392030702,1761111047813,-153.129618,0.00034795,30]
[392030703,1761111047822,-178.006561,0.00034795,30]
[392030704,1761111047831,-178.006561,0.00034795,30]
[392030705,1761111047840,-178.006561,0.00034795,30]
[392030706,1761111047849,-178.006561,0.00034795,30]
[392030707,1761111047858,-151.0,0.00034795,30]
[392030708,1761111047868,-151.0,0.00034795,30]
[392030709,1761111047877,-188.120204,0.00034795,30]
[392030710,1761111047887,-151.0,0.00034795,2]
[392030711,1761111047896,-172.539838,0.00034795,30]
[392030712,1761111047906,-1396.11950418,0.00034795,2]
[392030713,1761111047915,-94318.04697274,0.00034795,4]
[392030714,1761111047925,-151.0,0.00034795,30]
[392030715,1761111047934,-151.0,0.00034795,30]
[392030716,1761111047945,-160.0,0.000348,30]
[392030717,1761111047954,-160.0,0.000348,30]
[392030718,1761111047964,-160.0,0.000348,30]
[392030719,1761111047973,-160.0,0.000348,60]
[392030720,1761111047983,-160.0,0.000348,60]
[392030721,1761111047992,-160.0,0.000348,15]
[392030722,1761111048001,-160.0,0.000348,15]
[392030723,1761111048011,-1137.89,0.000348,7]
[392030724,1761111048022,-1000.0,0.00034801,4]
[392030725,1761111048031,-287.50409411,0.0003485,2]
[392030726,1761111048041,-437.94,0.00034855,60]
[392030727,1761111048050,-500.0,0.0003487,10]
[392030728,1761111048060,-11617.9879606,0.00034889,2]
[392030729,1761111048069,-1576.3048203,0.00034889,2]
[392030730,1761111048078,-12590.1073074,0.00034889,2]
[392030731,1761111048087,-26259.4888095,0.00034889,2]
[392030732,1761111048096,-4510.7252714,0.00034889,2]
[392030733,1761111048105,-153.129618,0.0003489,30]
[392030734,1761111048115,-153.129618,0.0003489,30]
[392030735,1761111048124,-153.129618,0.0003489,30]
[392030736,1761111048133,-153.129618,0.0003489,30]
[392030737,1761111048143,-153.129618,0.0003489,30]
[392030738,1761111048152,-153.129618,0.0003489,30]
[392030739,1761111048161,-153.129618,0.0003489,30]
[392030740,1761111048170,-153.129618,0.0003489,30]
[392030741,1761111048179,-153.129618,0.0003489,30]
[392030742,1761111048189,-153.129618,0.0003489,30]
[392030743,1761111048198,-153.129618,0.0003489,30]
[392030744,1761111048207,-153.129618,0.0003489,30]
[392030745,1761111048216,-2000.0,0.00034894,30]
[392030746,1761111048226,-201280.08961048,0.00034895,20]
[392030747,1761111048292,-120000.0,0.00034895,20]
[392030748,1761111048303,-7752.83691261,0.00034895,20]
[392030749,1761111048314,-7279.98585284,0.00034895,20]
[392030750,1761111048325,-3608.82233881,0.00034895,20]
[392030751,1761111048388,-154.063327,0.00034738,7]
[392030752,1761111048397,-9427.196673,0.00034895,20]
[392030753,1761111048435,196.0,0.000157,2]
[392030754,1761111048465,196.0,0.000169,2]
[392030755,1761111048496,244.38824907,0.000181,2]
[392030756,1761111048699,-288.0,0.00034895,20]
[392030757,1761111048882,-649.56,0.000304,10]
[392030767,1761111394574,150.0,0.00020103,2]
[392030768,1761111394985,150.0,0.00021931,2]
[392030769,1761111395432,150.0,0.00023759,2]
[392030770,1761111449084,900.710441,0.00013699,2]
[392030771,1761111449280,900.710441,0.00020187,2]
[392030773,1761111468536,150.0,0.00020103,2]
[392030774,1761111469014,150.0,0.0002193,2]
[392030775,1761111469431,150.0,0.00023758,2]
[392030776,1761111495873,423.2178994,0.00023674,30]
[392030784,1761111740637,150.0,0.00020078,2]
[392030785,1761111741073,150.0,0.00021903,2]
[392030786,1761111741815,150.0,0.00023729,2]
[392030789,1761111812508,150.0,0.00020082,2]
[392030790,1761111812963,150.0,0.00021908,2]
[392030791,1761111813387,150.0,0.00023734,2]
[392030792,1761111848542,4516.3991246,0.00023673,2]
[392030793,1761111959132,150.0,0.00020068,2]
[392030794,1761111959555,150.0,0.00021892,2]
[392030795,1761111960003,150.0,0.00023716,2]
[392030796,1761111996287,240.3551693,0.00023674,2]
[392030797,1761112140132,27394.1,0.00034873,30]
[392030866,1761112231859,-1200.0,0.00024576,2]
[392030868,1761112231868,-150.0,0.00024588,2]
[392030871,1761112231879,-300.0,0.00024666,2]
[392030872,1761112231888,-1199.22,0.00024667,10]
[392030875,1761112231897,-3753.07049097,0.00024676,2]
[392030877,1761112231907,-300.0,0.00024676,2]
[392030879,1761112231917,-562.49392837,0.00024676,2]
[392030881,1761112231926,-500.0,0.00024676,2]
[392030883,1761112231935,-436.29639064,0.00024676,2]
[392030885,1761112231944,-500.0,0.00024676,2]
[392030887,1761112231954,-277.31019678,0.00024676,2]
[392030889,1761112231963,-309.37211,0.00024676,2]
[392030891,1761112231972,-500.0,0.00024676,2]
[392030893,1761112231981,-111.02454438,0.00024676,2]
[392030919,1761112237710,-260.05973606,0.00024577,2]
[392030920,1761112237719,-213.37108463,0.00024577,2]
[392030921,1761112237728,-54.6521642,0.00024676,2]
[392030922,1761112237739,-449.57624756,0.00024676,2]
[392030923,1761112237749,-420.70941291,0.00024676,2]
[392030924,1761112237758,-370000.0,0.00024677,2]
[392030925,1761112237767,-500.0,0.00024677,5]
[392030926,1761112237776,-6722.13,0.000247,7]
[392030927,1761112237786,-132252.444466,0.000249,2]
[392030928,1761112237795,-245.697016,0.00025,2]
[392030929,1761112237804,-500.0,0.00025225,5]
[392030930,1761112237813,-177.0,0.00025588,2]
[392030931,1761112237822,-500.0,0.00025773,5]
[392030932,1761112237831,-500.01,0.00026321,5]
[392030933,1761112237840,-204.0,0.00026588,2]
[392030934,1761112237849,-900.710441,0.00026676,2]
[392030935,1761112237859,-420.0,0.00026731,2]
[392030936,1761112237868,-195.73,0.00027385,2]
[392030937,1761112237877,-245.697016,0.00027485,2]
[392030938,1761112237886,-156.4958,0.00027485,2]
[392030939,1761112237896,-967.51,0.000275,2]
[392030940,1761112237906,-231.0,0.00027588,2]
[392030941,1761112237916,-796.52,0.000284,7]
[392030942,1761112237925,-245.697016,0.00028493,10]
[392030943,1761112237935,-258.0,0.00028588,2]
[392030944,1761112237945,-230.643,0.00028596,20]
[392030945,1761112237954,-168.6930046,0.00028654,2]
[392030946,1761112237963,-506.49602453,0.00028917,7]
[392030947,1761112237972,-587.0,0.00028968,2]
[392030948,1761112237981,-2000.0,0.00029,2]
[392030949,1761112237991,-285.0,0.00029588,2]
[392030950,1761112238000,-245.697016,0.0002997,2]
[392030951,1761112238009,-156.4958,0.0002997,2]
[392030952,1761112238019,-615.31,0.0003,10]
[392030953,1761112238029,-564.76,0.00030136,7]
[392030954,1761112238039,-500.0,0.00030136,7]
[392030955,1761112238048,-500.0,0.00030136,2]
[392030956,1761112238058,-500.0,0.00030136,7]
[392030957,1761112238067,-586.84,0.00030136,7]
[392030958,1761112238077,-628.64,0.00030136,7]
[392030959,1761112238087,-177.44813654,0.00030136,7]
[392030960,1761112238096,-815.29,0.00030136,2]
[392030961,1761112238105,-500.0,0.00030136,7]
[392030962,1761112238114,-199.52534277,0.00030136,7]
[392030963,1761112238125,-988.46,0.00030136,2]
[392030964,1761112238134,-500.0,0.00030136,7]
[392030965,1761112238143,-500.0,0.00030136,3]
[392030966,1761112238153,-500.0,0.00030136,7]
[392030967,1761112238163,-500.0,0.00030136,7]
[392030968,1761112238172,-500.0,0.00030136,7]
[392030969,1761112238182,-245.697016,0.0003014,10]
[392030970,1761112238191,-156.4958,0.0003014,10]
[392030971,1761112238201,-564.76,0.0003041,7]
[392030972,1761112238210,-500.0,0.0003041,7]
[392030973,1761112238220,-500.0,0.0003041,2]
[392030974,1761112238230,-500.0,0.0003041,7]
[392030975,1761112238240,-586.84,0.0003041,7]
[392030976,1761112238249,-628.64,0.0003041,7]
[392030977,1761112238258,-815.29,0.0003041,2]
[392030978,1761112238268,-500.0,0.0003041,7]
[392030979,1761112238278,-988.46,0.0003041,2]
[392030980,1761112238288,-500.0,0.0003041,7]
[392030981,1761112238297,-500.0,0.0003041,3]
[392030982,1761112238307,-500.0,0.0003041,7]
[392030983,1761112238316,-434.46,0.0003041,7]
[392030984,1761112238330,-312.0,0.00030588,2]
[392030985,1761112238339,-564.76,0.00030684,7]
[392030986,1761112238349,-500.0,0.00030684,7]
[392030987,1761112238359,-500.0,0.00030684,2]
[392030988,1761112238369,-500.0,0.00030684,7]
[392030989,1761112238378,-586.84,0.00030684,7]
[392030990,1761112238388,-628.64,0.00030684,7]
[392030991,1761112238397,-815.29,0.00030684,2]
[392030992,1761112238407,-500.0,0.00030684,7]
[392030993,1761112238416,-988.46,0.00030684,2]
[392030994,1761112238426,-500.0,0.00030684,7]
[392030995,1761112238436,-500.0,0.00030684,3]
[392030996,1761112238445,-245.697016,0.000309,7]
[392030997,1761112238456,-18893.2063524,0.00030948,2]
[392030998,1761112238468,-564.76,0.00030958,7]
[392030999,1761112238478,-500.0,0.00030958,7]
[392031000,1761112238487,-500.0,0.00030958,2]
[392031001,1761112238496,-500.0,0.00030958,7]
[392031002,1761112238507,-586.84,0.00030958,7]
[392031003,1761112238516,-628.64,0.00030958,7]
[392031004,1761112238526,-815.29,0.00030958,2]
[392031005,1761112238535,-500.0,0.00030958,7]
[392031006,1761112238545,-988.46,0.00030958,2]
[392031007,1761112238554,-500.0,0.00030958,7]
[392031008,1761112238564,-500.0,0.00030958,3]
[392031009,1761112238573,-6722.13,0.00031,7]
[392031010,1761112238583,-903.687708,0.00031026,2]
[392031011,1761112238592,-983.0,0.00031066,2]
[392031012,1761112238602,-632.0,0.00031066,2]
[392031013,1761112238611,-2164.0,0.00031066,2]
[392031014,1761112238621,-967.51,0.000311,2]
[392031015,1761112238631,-179.65864857,0.00031146,6]
[392031016,1761112238640,-564.76,0.00031232,7]
[392031017,1761112238649,-500.0,0.00031232,7]
[392031018,1761112238659,-500.0,0.00031232,2]
[392031019,1761112238668,-500.0,0.00031232,7]
[392031020,1761112238678,-586.84,0.00031232,7]
[392031021,1761112238687,-628.64,0.00031232,7]
[392031022,1761112238696,-815.29,0.00031232,2]
[392031023,1761112238705,-500.0,0.00031232,7]
[392031024,1761112238714,-988.46,0.00031232,2]
[392031025,1761112238723,-500.0,0.00031232,7]
[392031026,1761112238732,-500.0,0.00031232,3]
[392031027,1761112238742,-823.0,0.00031393,2]
[392031028,1761112238751,-564.76,0.00031506,7]
[392031029,1761112238760,-569.51899351,0.00031506,7]
[392031030,1761112238769,-247.42464033,0.00031506,2]
[392031031,1761112238779,-500.0,0.00031506,7]
[392031032,1761112238788,-586.84,0.00031506,7]
[392031033,1761112238797,-628.64,0.00031506,7]
[392031034,1761112238807,-815.29,0.00031506,2]
[392031035,1761112238817,-500.0,0.00031506,7]
[392031036,1761112238827,-988.46,0.00031506,2]
[392031037,1761112238838,-500.0,0.00031506,7]
[392031038,1761112238848,-500.0,0.00031506,3]
[392031039,1761112238858,-339.0,0.00031588,2]
[392031040,1761112238868,-564.76,0.0003178,7]
[392031041,1761112238878,-613.0,0.0003178,7]
[392031042,1761112238887,-586.84,0.0003178,7]
[392031043,1761112238897,-628.64,0.0003178,7]
[392031044,1761112238907,-815.29,0.0003178,2]
[392031045,1761112238916,-500.0,0.0003178,7]
[392031046,1761112238925,-988.46,0.0003178,2]
[392031047,1761112238934,-500.0,0.0003178,7]
[392031048,1761112238943,-500.0,0.0003178,3]
[392031049,1761112238952,-245.697016,0.00031788,10]
[392031050,1761112238962,-156.4958,0.00031788,10]
[392031051,1761112238972,-245.697016,0.00031902,7]
[392031052,1761112238981,-156.4958,0.00031902,7]
[392031053,1761112238991,-564.76,0.00032054,7]
[392031054,1761112239001,-586.84,0.00032054,7]
[392031055,1761112239010,-628.64,0.00032054,7]
[392031056,1761112239020,-815.29,0.00032054,2]
[392031057,1761112239030,-500.0,0.00032054,7]
[392031061,1761112239157,-988.46,0.00032054,2]
[392031064,1761112239167,-500.0,0.00032054,7]
[392031067,1761112239177,-500.0,0.00032054,3]
[392031068,1761112239187,-500.0,0.00032091,7]
[392031069,1761112239197,-796.52,0.000321,7]
[392031070,1761112239209,-500.0,0.00032255,7]
[392031071,1761112239218,-343.61,0.00032256,15]
[392031072,1761112239227,-18893.2063524,0.00032318,2]
[392031073,1761112239237,-564.76,0.00032328,7]
[392031074,1761112239247,-586.84,0.00032328,7]
[392031075,1761112239256,-628.64,0.00032328,7]